Cogmind - Beta 15 @@@ ROGUE MODE // 2025.08.27 @ 21:20:51 Player: seita Result: Self-destructed Performance ------------- Evolutions (4) 2000 Regions Visited (4) 800 Robots Destroyed (21) 105 Value Destroyed (686) 686 Prototype IDs (21) 420 Alien Tech Used (0) 0 Bonus (800) 800 TOTAL SCORE: 4811 Bonus ------- Registered with UFD 300 Met Optimus in HQ 500 Cogmind --------- Core Integrity 295/850 Matter 300/300 Energy 300/300 System Corruption 4% Temperature Cool (0) Movement Walking (190) Ox1 Location -6/Factory Parts ------- > --- POWER (2+1) ------ Angular Momentum Engine > --- PROPULSION (4+1) - Carbon-fiber Leg > --- UTILITY (7+1) ---- Core Shielding Rainbow Chip > --- WEAPON (2+1) ----- Axe Companion Sword > --- INVENTORY (5) ---- Large Storage Unit Makeshift Shrapnel Gun Heavy Machine Gun Vortex Trap Vortex Trap Peak State ------------ > --- POWER ------------ Micro Nuclear Core Angular Momentum Engine > --- PROPULSION ------- Armored Wheel Armored Huge Wheel > --- UTILITY ---------- High-capacity Storage Unit Improved Actuator Array Improved Actuator Array Improved Actuator Array Force Booster Improved Reaction Control System Improved Light Armor Plating > --- WEAPON ----------- Companion Sword > --- INVENTORY -------- Improved Deuterium Engine Micro Nuclear Core Micro Nuclear Core Angular Momentum Engine Angular Momentum Engine Light Angular Momentum Engine Fission Core Large Storage Unit Seismic Detector Rainbow Chip Makeshift Shrapnel Gun Makeshift Shrapnel Gun Heavy Machine Gun Rocket Array Heavy Hammer Vortex Trap Vortex Trap Vortex Trap DRS Beacon [Rating: 60] Favorites ----------- Power Improved Ion Engine Engine Improved Ion Engine Power Core Micro Nuclear Core Propulsion Light Treads Treads Light Treads Leg Makeshift Leg Wheel Subdweller Monowheel Utility Seismic Detector Device Seismic Detector Storage Large Storage Unit Processor Rainbow Chip Hackware Hacking Suite Protection Hardened Light Armor Plating Weapon Battle Rifle Energy Gun Medium Laser Ballistic Gun Battle Rifle Launcher Grenade Launcher Special Weapon Mining Laser Impact Weapon Heavy Hammer Slashing Weapon Companion Sword Build | -11 -10 -10 -9 -6 ------- Run | Yrd Mat Sub Scr Fac Slots Evolved 8 | . . . . 8 Power 1 | . . . . 1 Propulsion 2 | . . . . 2 Utility 5 | . . . . 5 Weapon . | . . . . . Parts Attached 54 | 7 5 10 13 19 Power 7 | 1 1 . 3 2 Engine 6 | 1 1 . 3 1 Core 1 | . . . . 1 Reactor . | . . . . . Propulsion 14 | 2 . 4 5 3 Treads 3 | 2 . 1 . . Leg 3 | . . . 2 1 Wheel 8 | . . 3 3 2 Hover . | . . . . . Flight . | . . . . . Utility 16 | 2 1 . 1 12 Device 8 | 1 . . . 7 Storage 3 | 1 1 . 1 . Processor 1 | . . . . 1 Hackware 1 | . . . . 1 Protection 3 | . . . . 3 Artifact . | . . . . . Weapon 17 | 2 3 6 4 2 Energy Gun 2 | 1 1 . . . Energy Cannon . | . . . . . Ballistic Gun 9 | 1 2 3 3 . Ballistic Cannon . | . . . . . Launcher 2 | . . 1 . 1 Special Weapon 1 | . . 1 . . Impact Weapon 1 | . . 1 . . Slashing Weapon 2 | . . . 1 1 Piercing Weapon . | . . . . . Special Melee Weapon . | . . . . . Unidentified Prototypes 2 | . . . 1 1 Parts Lost 13 | . . 1 . 12 Power 3 | . . . . 3 Propulsion 4 | . . 1 . 3 Utility 5 | . . . . 5 Weapon . | . . . . . Highest Loss Streak 8 | . . 1 . 8 To Critical Strikes 1 | . . . . 1 Average Backups 13 | 5 10 14 14 12 Power 3 | . 2 3 3 4 Propulsion 1 | 2 . 1 1 . Utility 3 | . . 2 4 4 Weapon 5 | 1 7 6 5 4 Tool/Special . | . . . . . Unused Backups 38 | . 13 7 12 6 Power 10 | . 4 1 2 3 Propulsion 7 | . 4 . 3 . Utility 2 | . . . 1 1 Weapon 19 | . 5 6 6 2 Tool/Special . | . . . . . Average Slot Usage (%) 93 | . 99 99 93 63 Engine 13 | . 14 14 14 5 Treads 11 | . 28 24 . . Leg 3 | . . . 8 . Wheel 9 | . . 3 14 14 Device 14 | . 14 14 14 18 Storage 13 | . 14 14 14 5 Ballistic Gun 19 | . 21 13 26 . Launcher 2 | . . 7 . . Impact Weapon 2 | . . 7 . . Peak Build Rating 60 | 7 10 16 32 60 Average Rating 19 | 5 8 12 23 42 On Entrance 12 | . 7 10 16 28 Naked Turns . | . . . . . Heaviest Build 93 | 14 32 35 59 93 Greatest Support 50 | 40 40 40 40 50 Greatest Overweight (x) 10 | . . 1 10 2 Average Overweight (x) . | . . . 1 1 Largest Inventory Capacity 20 | 8 15 15 20 20 Average Capacity 15 | 7 11 15 18 17 Most Carried 20 | 8 15 15 20 20 Average Carried 15 | 5 10 14 17 16 Final Capacity 20 | 8 15 15 20 5 Final Carried 20 | 8 15 15 20 5 Class Distribution -------------------- 83% | Mutant 13% | Derelict-Mutant 3% | Scavenger-Mutant Dominant Class ---------------- Mutant | -10/Materials Mutant | -10/Subcaves Mutant | -9/Scraptown Mutant | -6/Factory Resources | -11 -10 -10 -9 -6 ----------- Run | Yrd Mat Sub Scr Fac Matter Collected 904 | 268 67 219 140 210 Remotely . | . . . . . Salvage Created 861 | 88 81 234 . 458 Parts 40 | 4 5 17 . 14 Haulers Intercepted . | . . . . . Recyclers Shooed . | . . . . . Parts Field Recycled . | . . . . . Retrieved Matter . | . . . . . Parts Self-Destructed 15 | . . 15 . . Prevented . | . . . . . Kills | -11 -10 -10 -9 -6 ------- Run | Yrd Mat Sub Scr Fac Combat Hostiles Destroyed 18 | . 2 9 . 7 Melee 7 | . . . . 7 Guns 7 | . 2 5 . . AOE 4 | . . 4 . . Classes Destroyed 9 | 2 1 2 . 4 Worker 1 | . . . . 1 Tunneler 1 | 1 . . . . Recycler 1 | 1 . . . . Swarmer 4 | . . 4 . . Grunt 6 | . 2 . . 4 Brawler 1 | . . . . 1 Duelist 1 | . . . . 1 Hunter 1 | . . . . 1 Subdweller 5 | . . 5 . . Best Kill Streak 4 | 1 1 4 . 2 Combat Bots Only 4 | . 1 4 . 2 Max Kills in Single Turn 4 | 1 1 4 . 1 Gunslinging . | . . . . . Exploded 4 | . . 4 . . Melee 1 | . . . . 1 Uniques/NPCs Destroyed . | . . . . . Combat | -11 -10 -10 -9 -6 -------- Run | Yrd Mat Sub Scr Fac Hostile Shots Fired 141 | . 8 36 . 97 Missed 28 | . 1 8 . 19 Hits 113 | . 7 28 . 78 Melee 6 | . . . . 6 Projectile 107 | . 7 28 . 72 Critical Strikes 10 | . . 1 . 9 Actively Blocked 1 | . . . . 1 Damage Taken 2186 | . 104 515 . 1567 Core 618 | . 12 51 . 555 Absorbed by Shields . | . . . . . Redirected to Shielding 11 | . . . . 11 Core Remaining (%) 87 | 100 . . 74 . Volleys Fired 36 | 8 7 21 . . Largest 2 | 2 2 2 . . Hottest 70 | 70 60 58 . . Shots Fired 70 | 16 14 40 . . Gun 68 | 16 14 38 . . Cannon . | . . . . . Launcher 2 | . . 2 . . Special . | . . . . . Kinetic 53 | 8 7 38 . . Thermal 8 | 8 . . . . Explosive 2 | . . 2 . . Electromagnetic 7 | . 7 . . . Robot Hit Streak 16 | 6 8 16 . . Robot Miss Streak 2 | 1 2 1 . . Penetration Max . | . . . . . Secondary Targets 1 | . . 1 . . Max Gunslinging Chain 1 | . . 1 . . Shots Hit Robots 93 | 12 10 35 . 36 Core Hits 37 | 4 4 15 . 14 Critical Kills . | . . . . . Critical Parts Destroyed . | . . . . . Critical Strikes 1 | . 1 . . . Corrupt 1 | . 1 . . . Melee Attacks 53 | . . 2 . 51 Impact 2 | . . 2 . . Slashing 51 | . . . . 51 Piercing . | . . . . . Sneak Attacks 2 | . . . . 2 Combat Hostiles 1 | . . . . 1 Follow-up Attacks . | . . . . . Damage Inflicted 2532 | 134 134 773 . 1491 Guns 819 | 134 112 573 . . Cannons . | . . . . . Explosions 222 | . 22 200 . . Melee 1491 | . . . . 1491 Ramming . | . . . . . Kinetic 662 | 58 31 573 . . Thermal 98 | 76 22 . . . Explosive 200 | . . 200 . . Electromagnetic 81 | . 81 . . . Impact . | . . . . . Slashing 1491 | . . . . 1491 Piercing . | . . . . . Highest Corruption 4 | . . . . 4 Average Corruption 3 | . . . . 3 Corruption Purged . | . . . . . Corruption Blocked . | . . . . . Effects 4 | . . . . 4 Message Errors 1 | . . . . 1 Heat Flow Errors 1 | . . . . 1 Data Loss (major) 1 | . . . . 1 Alerts 1 | . . . . 1 Overload Shots . | . . . . . Overflow Damage 31 | . . 12 . 19 Projectiles . | . . . . . Explosions 12 | . . 12 . . Melee 19 | . . . . 19 Knockbacks . | . . . . . Impact . | . . . . . Kinetic . | . . . . . Secondary . | . . . . . Self-Inflicted Damage 43 | . 29 14 . . Shots 2 | . 1 1 . . Rammed 1 | . 1 . . . Targets Rammed 1 | . 1 . . . Kicked . | . . . . . Crushed . | . . . . . Highest Temperature 196 | 100 70 . . 196 Average Temperature 55 | 48 31 . . 90 Received Heat Transfer 717 | . 42 81 . 594 Siege Activations . | . . . . . Martial Activations . | . . . . . Shielding Activations . | . . . . . Robots Disrupted . | . . . . . Combat Hostiles . | . . . . . Robots Corrupted . | . . . . . Combat Hostiles . | . . . . . Parts Fried . | . . . . . Impact Corruptions . | . . . . . Robots Melted . | . . . . . Combat Hostiles . | . . . . . Parts Melted . | . . . . . Heat Transferred 272 | 222 50 . . . Parts Sabotaged . | . . . . . Parts Stolen . | . . . . . Parts Stripped . | . . . . . Power Chain Reactions 1 | . 1 . . . Alert | -11 -10 -10 -9 -6 ------- Run | Yrd Mat Sub Scr Fac Maximum Alert Level . | . . . . . Low Security (%) 100 | 100 100 . . 100 Level 1 . | . . . . . Level 2 . | . . . . . Level 3 . | . . . . . Level 4 . | . . . . . Level 5 . | . . . . . High Security . | . . . . . Max Security . | . . . . . Peak Influence 35 | 5 34 . . 35 Initial . | . . . . . Average 4 | . 2 . . 9 Influence Increases 423 | 10 54 125 . 234 Destroy 0b10 Robot/C 260 | . 40 80 . 140 Destroy 0b10 Robot/NC 15 | 10 . . . 5 Destroy Leader 40 | . 10 . . 30 Successful Hack 10 | . . . . 10 Destroy Structure 8 | . 4 . . 4 Partial Spotted 15 | . . . . 15 Lose Combat Pursuer 75 | . . 45 . 30 Influence Decreases 417 | 10 54 125 . 228 Time Decay 328 | 10 54 125 . 139 Lost Part 89 | . . . . 89 Squads Dispatched 9 | . 1 . . 8 Investigation 1 | . . . . 1 Extermination 1 | . . . . 1 Reinforcement 4 | . 1 . . 3 Assault . | . . . . . Garrison 3 | . . . . 3 Intercept . | . . . . . Searches Triggered . | . . . . . Construction Impeded . | . . . . . Haulers Reinforced . | . . . . . Active Scanning Responses . | . . . . . Cargo Convoy Interrupts . | . . . . . Stealth | -11 -10 -10 -9 -6 --------- Run | Yrd Mat Sub Scr Fac Distress Signals 1 | . 1 . . . Communications Jammed . | . . . . . Distress Signals . | . . . . . Times Spotted 32 | . 3 13 . 16 Peak Tracking Total 6 | . 1 6 . 5 Tactical Retreats 3 | . . 1 . 2 Traps | -11 -10 -10 -9 -6 ------- Run | Yrd Mat Sub Scr Fac Traps Triggered . | . . . . . Indirectly . | . . . . . Trap Hack Attempts . | . . . . . Triggered . | . . . . . Disarmed . | . . . . . Reprogrammed . | . . . . . Reused . | . . . . . Traps Extracted . | . . . . . Installed . | . . . . . Triggered . | . . . . . Most Traps Carried 3 | . . . 3 3 Machines | -11 -10 -10 -9 -6 ---------- Run | Yrd Mat Sub Scr Fac Machines Disabled 1 | . . 1 . . Max in Single Turn 1 | . . 1 . . Machines Repaired . | . . . . . Machines Dismantled . | . . . . . Machines Sabotaged . | . . . . . Overloaded Fab Kills . | . . . . . Hacking | -11 -10 -10 -9 -6 --------- Run | Yrd Mat Sub Scr Fac Machines Accessed 15 | . 5 2 5 3 Terminals 6 | . 5 . . 1 Fabricators . | . . . . . Repair Stations . | . . . . . Recycling Units 1 | . . . . 1 Scanalyzers 1 | . . . . 1 Garrison Access . | . . . . . Total Hacks 38 | . 15 2 15 6 Successful 26 | . 6 2 15 3 Failed 12 | . 9 . . 3 Catastrophic 1 | . 1 . . . Database Lockouts . | . . . . . Manual 7 | . 4 . . 3 Terminals 17 | . 15 . . 2 Fabricators . | . . . . . Repair Stations . | . . . . . Recycling Units 1 | . . . . 1 Scanalyzers 3 | . . . . 3 Garrison Access . | . . . . . Terminal Hacks 23 | . 6 2 15 . Record 13 | . . . 13 . Prototype ID Bank 1 | . 1 . . . Open Door 2 | . . 1 1 . Locate Traps 4 | . 4 . . . Zone Layout 1 | . 1 . . . Proto ID Catalog 2 | . . 1 1 . Fabricator Hacks . | . . . . . Repair Station Hacks . | . . . . . Recycling Unit Hacks . | . . . . . Scanalyzer 2 | . . . . 2 Insert Component 1 | . . . . 1 Analyze 1 | . . . . 1 Garrison Access Hacks . | . . . . . Unauthorized Hacks 1 | . . . . 1 Terminals . | . . . . . Fabricators . | . . . . . Repair Stations . | . . . . . Recycling Units 1 | . . . . 1 Fedlink 1 | . . . . 1 Scanalyzers . | . . . . . Garrison Access . | . . . . . Data Cores Recovered . | . . . . . Used . | . . . . . Hacking Detections 7 | . 5 . . 2 Full Trace Events . | . . . . . Feedback Events . | . . . . . Feedback Blocked . | . . . . . Robot Schematics Acquired . | . . . . . Robots Built . | . . . . . Authchips . | . . . . . Time . | . . . . . Total Robot Build Rating . | . . . . . Part Schematics Acquired 1 | . . . . 1 Parts Built . | . . . . . Authchips . | . . . . . Time . | . . . . . Total Part Build Rating . | . . . . . Parts Repaired . | . . . . . Time . | . . . . . Parts Recycled . | . . . . . Recycled Matter . | . . . . . Retrieved Matter . | . . . . . Retrieved Components . | . . . . . Parts Scanalyzed 1 | . . . . 1 Part Schematics Acquired 1 | . . . . 1 Parts Damaged . | . . . . . Bothacking | -11 -10 -10 -9 -6 ------------ Run | Yrd Mat Sub Scr Fac Used RIF Installer . | . . . . . Robots Hacked . | . . . . . Non-combat . | . . . . . Combat . | . . . . . Robot Hacks Applied . | . . . . . Relay Couplers Released . | . . . . . Fabnet Peak Effective % . | . . . . . Robots Rewired . | . . . . . Allies Hacked . | . . . . . Hacks Repelled . | . . . . . Allies | -11 -10 -10 -9 -6 -------- Run | Yrd Mat Sub Scr Fac Total Allies . | . . . . . Largest Group . | . . . . . Highest-Rated Group . | . . . . . Highest-Rated Ally . | . . . . . Total Orders . | . . . . . Ally Attacks . | . . . . . Total Damage . | . . . . . Kills . | . . . . . Allies Corrupted . | . . . . . Allies Melted . | . . . . . Intel | -11 -10 -10 -9 -6 ------- Run | Yrd Mat Sub Scr Fac Active Infowar (turns) 5339 | 86 755 1685 2509 304 Seismic 5339 | 86 755 1685 2509 304 Robot Analysis Total . | . . . . . Derelict Logs Recovered 7 | . . 2 5 . Drone Launches . | . . . . . Drone Recoveries . | . . . . . Exploration | -11 -10 -10 -9 -6 ------------- Run | Yrd Mat Sub Scr Fac Turns Passed 5609 | 152 755 1685 2509 508 Spaces Moved 3541 | 71 432 1038 1727 273 Core 33 | 3 . . 17 13 Treads 1367 | 68 432 867 . . Legs 364 | . . . 351 13 Wheels 1777 | . . 171 1359 247 Hover . | . . . . . Flight . | . . . . . Fastest Speed 50 | 50 160 110 110 100 Average Speed 144 | 155 160 152 141 110 Slowest Speed 550 | 160 160 240 550 190 Overloaded Moves . | . . . . . Propulsion Burnouts . | . . . . . Robots Hopped . | . . . . . Potential Cave-ins . | . . . . . Cave-ins Triggered . | . . . . . Exploration Rate (%) 45 | 5 71 54 91 8 Regions Visited 4 Branch Regions 2 Pre-discovered Areas 1 | . . 1 . . Known Exits Taken . | . . . . . Unknown Exits Taken 4 | 1 1 1 1 . Scrap Searched 14 | . . 9 5 . Spaces Dug 4 | . . . . 4 Terrain Destroyed 19 | . 4 11 . 4 Melee 4 | . . . . 4 Projectile . | . . . . . AOE 15 | . 4 11 . . Terrain Rammed . | . . . . . Walls Destroyed . | . . . . . Machines Disabled . | . . . . . Actions | -11 -10 -10 -9 -6 --------- Run | Yrd Mat Sub Scr Fac Total 3919 | 96 495 1110 1806 412 Wait 72 | . 10 16 . 46 Move 3537 | 70 431 1037 1726 273 Hop . | . . . . . Pick Up 82 | 11 22 10 31 8 Fast Attach 23 | 4 1 2 4 12 Attach 12 | 3 . . 1 8 Detach 2 | . . . 1 1 Swap 23 | . 4 8 9 2 Drop 78 | . 19 14 34 11 Fire 36 | 8 7 21 . . Melee 53 | . . 2 . 51 Ram . | . . . . . Kick . | . . . . . Crush 1 | . 1 . . . Escape Stasis . | . . . . . Rewire . | . . . . . Trap . | . . . . . Miscellaneous . | . . . . . Route ------- -11/Scrapyard -10/Materials (discovered 5 exits: [*Mat x2] / [*Min x2] / *Sub) -10/Subcaves (discovered 3 exits: [*Mat x2] / *Scr) -9/Scraptown (discovered 2 exits: *Fac x2) -6/Factory History --------- Turn | Location | Event 14 | -11/Scrapyard | Discovered new exit (range 16) 153 | -11/Scrapyard | Entered Materials 154 | -10/Materials | Met a group of wandering Federalists 320 | -10/Materials | Discovered new exit (range 7) 334 | -10/Materials | Build established: Mutant 479 | -10/Materials | Discovered new exit (range 10) 661 | -10/Materials | Discovered new exit (range 3) 753 | -10/Materials | Discovered new exit (range 11) 903 | -10/Materials | Discovered new exit (range 5) 908 | -10/Materials | Entered Subcaves 909 | -10/Subcaves | Continued accompanying wandering Federalists (2) 1166 | -10/Subcaves | Wandering Federalist uncovered a shortcut to Scraptown 1450 | -10/Subcaves | Learned location of Zion (-7) 1495 | -10/Subcaves | A swath of the cavern ceiling suddenly collapsed 2037 | -10/Subcaves | Discovered new exit (range 16) 2048 | -10/Subcaves | Learned Materials emergency access door positions 2177 | -10/Subcaves | Visited 4L-MR0's lab 2197 | -10/Subcaves | Found Rainbow Chip 2291 | -10/Subcaves | Discovered new exit (range 14) 2303 | -10/Subcaves | Ambushed by Subdwellers from Twisted Machinery 2578 | -10/Subcaves | A Subdweller sparked back to life 2578 | -10/Subcaves | A Subdweller sparked back to life 2593 | -10/Subcaves | Entered Scraptown 2728 | -9/Scraptown | Visited Awakened 2758 | -9/Scraptown | Scanned Subdweller tech in exchange for log data 2761 | -9/Scraptown | Learned Factory terminal intel 2762 | -9/Scraptown | Learned 12 Research zone layouts 2801 | -9/Scraptown | Visited Cyclists 2811 | -9/Scraptown | Visited Red Mages 2828 | -9/Scraptown | Visited Shadow of the Wyrm 2837 | -9/Scraptown | Visited Cave Peace 2862 | -9/Scraptown | Visited Spacefarers 2872 | -9/Scraptown | Visited UFD Registry 2879 | -9/Scraptown | Registered with UFD as "Mononuts" 2896 | -9/Scraptown | Visited IN-MT5's Study 2970 | -9/Scraptown | Discovered new exit (range 13) 3012 | -9/Scraptown | Guru changed UFD alias to "Fluxfunk" 3207 | -9/Scraptown | Delivered Scrap Shield to a Scientist 3293 | -9/Scraptown | Visited Science Guys 3339 | -9/Scraptown | Visited Chapter 10 3426 | -9/Scraptown | Visited Supply Room 3540 | -9/Scraptown | Visited DA-N13 Charitable Foundation 3545 | -9/Scraptown | Found DCF Scrap (31 items) 3632 | -9/Scraptown | Visited Scrapoid Research Area 3700 | -9/Scraptown | Visited Sword Containment 3739 | -9/Scraptown | Build established: Derelict-Mutant 3768 | -9/Scraptown | Visited Supply Room 3820 | -9/Scraptown | Visited Derelict Rescue Squad 3834 | -9/Scraptown | Found DRS Beacon 3879 | -9/Scraptown | Visited Research Penetration Think Tank 3923 | -9/Scraptown | Visited LU-1G1's Boring Crew 4484 | -9/Scraptown | Entered Cyclist Reading Room 4492 | -9/Scraptown | Build established: Mutant 5015 | -9/Scraptown | Met Optimus 5015 | -9/Scraptown | Accepted into 0bPrime 5097 | -9/Scraptown | Discovered new exit (range 5) 5102 | -9/Scraptown | Entered Factory 5102 | -6/Factory | Evolved 8 slots: Power x1, Propulsion x2, Utility x5 5103 | -6/Factory | Loaded intel: 26 terminal locations 5265 | -6/Factory | Found Prototype Launcher 5265 | -6/Factory | Identified Rocket Array 5320 | -6/Factory | Loaded intel: 8 recycling unit locations 5348 | -6/Factory | Garrison activated, responded to threat 5545 | -6/Factory | Core integrity fell below 50% 5561 | -6/Factory | Lost 8 parts (3p2n2u) 5603 | -6/Factory | Attached Rainbow Chip, gained temporary slots: Power, Propulsion, Utility, Weapon 5610 | -6/Factory | Self-destructed Last Messages --------------- 05586_ Acquired 20 matter. 05589_ Acquired Angular Momentum Engine. 05596_ Acquired Vortex Trap. 05601_ Acquired Rainbow Chip. 05602_ O-24 Administrator uses terminal to summon reinforcements. 05602_ ALERT: Hostiles spotted, dispatching reinforcements to Terminal F010. 05602_ O-24 Administrator locks terminal. 05603_ Core temporarily expanded with Power slot. 05603_ Core temporarily expanded with Propulsion slot. 05603_ Core temporarily expanded with Utility slot. 05603_ Core temporarily expanded with Weapon slot. 05605_ System corrupted: IFF burst signal emitted. 05606_ Acquired 20 matter. Map ----- +----------------------------------------------------+ | ????????????????? | | ###########+#########????????????????? | | #????????????????????????????????????? | | ####### #????????????????????????????????????? | | + #????????????????????????????????????? | | """ # #????????????????????????????????????? | | ! """ # #????????????????????????????????????? | | ! """ # #????????????????????????????????????? | | # #????????????????????????????????????? | | "" # #????????????????????????????????????? | | S"" # #????????????????????????????????????? | | "" # #????????????????????????????????????? | | ###+### #????????????????????????????????????? | | ??# ### #???????? ???????????????????????????? | | ??# #?# #????????/####???????????????????????? | | ??# #?? ????????? #???????????????????????? | | ??# #?? ???????"""" #???????????????????????? | | ??# #?? ? ?? """" #???????????????????????? | | ??# #?? / """" #???????????????????????? | | ??# #?? #"" """" #???###########?????????? | | ??# #?? #"" #???#! ?????????? | | ###+### #"" """" #???# """""""""????????? | | # #T """" *#???# ???????? | | # #"" """" *#???#% """"""""" #??????? | | == # #"" g""""*%#####[% #??????? | | == + #"" g *! @% *+*&"""""""""????????? | | = # # gg/! #####]% #??????? | | # ########/#####???#**""""""""" #??????? | | ]# #??????# ????????# #??????? | | # #??????# ????????# """"""""" #??????? | | #####"" ######## ######### #????### | | ????### + #????# | | ??????# ######## ##############????# | | ??????# #??????# ################### | | ?###### #??????# % + | | # #??????# ########### ############ | | # #######+#######??# #?????????# #??????????# | | ??# #??# #?????????# #??????????# | | ??# #??# #?????????# #??????????# | | ??# #??# #????????##+##+##?????????#"" | | ??# #??# #????????# #?????????#"Y | | ??# #??# #????????# !#?????????#"" | | ??# #### ########## !#?????????# | | ??# + + #?????????### | | ??# * ############### ] #???????????? | | ??# * #?????????????# #???????????? | | ??# ** #?????????????########???????????? | | ??# #????????????????????????????????? | | ??###############????????????????????????????????? | | | +----------------------------------------------------+ Best States ------------- Heat Dissipation 37 Energy Generation 28 Energy Capacity 350 Matter Stores 300 Matter Capacity 300 Sight Range 16 Terrain Scan Density 10 Armor Coverage 150 Core Shielding 20 Evasion (%) 55 Recoil Reduction 2 Force Boost 20 Offensive Hacking 10 Item Schematics ----------------- Lrg. Storage Unit | -6/Factory | Scanalyzed Robot Schematics ------------------ None Fabricated ------------ Nothing Repaired ---------- Nothing Alien Tech Used ----------------- None Achievements -------------- None Challenges ------------ None Game ------ Seed GrenadeSmartbombThrower Manual? 0 Play Time 00:34:49 Cumulative 101.9 hours Start 2025.08.27 @ 20:46:59 End 2025.08.27 @ 21:20:51 Sessions 1 Manual Loads 0 Difficulty Rogue Special Mode None Game No. 77 Rogue 72 Adventurer 5 Explorer 0 Win Type - Total 1 Types 1/0/0/0/0/0/0/0/0/0 Lore% 55 Gallery% 48 Achievement% 42 Wizard Run 0 Options --------- Layout 1 ASCII 0 Keyboard 0 Movement Arrows Keybinds 0 Fullscreen 1 Font 16/SmallcapsGlow Map View 50x40 Zoom Use 0% Tactical HUD 1 Map Filters NONE Filters NONE Steam SD RUN: 708b63db-3bb5-45ae-aa66-755e438bcccb